lending/lending_fUSD_20241229
["ID","MTS","AMOUNT","RATE_DAILY","PERIOD"]
[346976299,1735445450529,-500.0,0.00012986,2]
[346976300,1735445450538,-500.0,0.00012986,2]
[346976301,1735445450547,-500.0,0.00012986,2]
[346976302,1735445450556,-510.66458925,0.00012986,2]
[346976303,1735445450566,-500.0,0.00012986,2]
[346976304,1735445450575,-155.557603,0.00012986,2]
[346976305,1735445450584,-155.73623,0.00012986,2]
[346976306,1735445450594,-500.0,0.00012986,2]
[346976307,1735445450603,-678.587519,0.00012986,2]
[346976308,1735445450613,-500.0,0.00012986,2]
[346976309,1735445450622,-500.0,0.00012986,2]
[346976310,1735445450632,-500.0,0.00012986,2]
[346976311,1735445450641,-479.77513553,0.00012986,2]
[346976312,1735445450650,-500.0,0.00012986,2]
[346976313,1735445450659,-500.0,0.00012986,2]
[346976314,1735445450669,-500.0,0.00012986,2]
[346976315,1735445450678,-500.0,0.00012986,2]
[346976316,1735445450687,-485.74942,0.00012986,2]
[346976317,1735445450697,-500.0,0.00012986,2]
[346976318,1735445450707,-917.95,0.00012986,2]
[346976319,1735445450717,-500.0,0.00012986,2]
[346976320,1735445450727,-500.0,0.00012986,2]
[346976321,1735445450737,-151.451518,0.00012986,2]
[346976322,1735445450746,-500.0,0.00012986,2]
[346976323,1735445450756,-500.0,0.00012986,2]
[346976324,1735445450769,-500.0,0.00012986,2]
[346976325,1735445450778,-500.0,0.00012986,2]
[346976326,1735445450787,-500.0,0.00012986,2]
[346976327,1735445450796,-500.0,0.00012986,2]
[346976328,1735445450806,-500.0,0.00012986,2]
[346976329,1735445450816,-500.0,0.00012986,2]
[346976330,1735445450825,-500.0,0.00012986,2]
[346976331,1735445450835,-505.56521066,0.00012986,2]
[346976332,1735445450844,-44.98325153,0.00012986,2]
[346976333,1735445450871,-455.01674847,0.00012986,2]
[346976334,1735445450882,-500.0,0.00012986,2]
[346976335,1735445450891,-500.0,0.00012986,2]
[346976336,1735445450901,-500.0,0.00012986,2]
[346976337,1735445450911,-500.0,0.00012986,2]
[346976338,1735445450921,-502.03616822,0.00012986,2]
[346976339,1735445450930,-502.42400484,0.00012986,2]
[346976340,1735445450940,-537.96481023,0.00012986,2]
[346976341,1735445450949,-500.0,0.00012986,2]
[346976342,1735445450958,-500.0,0.00012986,2]
[346976343,1735445450967,-500.0,0.00012986,2]
[346976344,1735445450977,-500.0,0.00012986,2]
[346976345,1735445450986,-500.0,0.00012986,2]
[346976346,1735445450995,-500.0,0.00012986,2]
[346976347,1735445451004,-500.0,0.00012986,2]
[346976348,1735445451013,-500.0,0.00012986,2]
[346976349,1735445451023,-500.0,0.00012986,2]
[346976350,1735445451032,-500.0,0.00012986,2]
[346976351,1735445451041,-512.05362876,0.00012986,2]
[346976352,1735445451050,-500.0,0.00012986,2]
[346976353,1735445451059,-338.35033353,0.00012986,2]
[346976354,1735445451069,-151.581845,0.00012986,2]
[346976355,1735445451078,-500.0,0.00012986,2]
[346976356,1735445451087,-507.76820559,0.00012986,2]
[346976357,1735445451096,-151.0,0.00012986,2]
[346976358,1735445451106,-151.0,0.00012986,2]
[346976359,1735445451115,-501.66749647,0.00012986,2]
[346976360,1735445451124,-151.0,0.00012986,2]
[346976361,1735445451133,-500.0,0.00012986,2]
[346976362,1735445451142,-151.0,0.00012986,2]
[346976363,1735445451155,-500.0,0.00012986,2]
[346976364,1735445451164,-500.0,0.00012986,2]
[346976365,1735445451175,-151.0,0.00012986,2]
[346976366,1735445451184,-184.969316,0.00012986,2]
[346976367,1735445451194,-151.0,0.00012986,2]
[346976368,1735445451203,-500.0,0.00012986,2]
[346976369,1735445451212,-500.0,0.00012986,2]
[346976370,1735445451222,-500.0,0.00012986,2]
[346976371,1735445451232,-500.0,0.00012986,2]
[346976372,1735445451242,-500.0,0.00012986,2]
[346976373,1735445451252,-500.0,0.00012986,2]
[346976374,1735445451262,-151.0,0.00012986,2]
[346976375,1735445451271,-500.0,0.00012986,2]
[346976376,1735445451280,-212.22111854,0.00012986,2]
[346976377,1735445451289,-500.0,0.00012986,2]
[346976378,1735445451299,-151.0,0.00012986,2]
[346976379,1735445451308,-310.09038622,0.00012986,2]
[346976380,1735445451317,-151.0,0.00012986,2]
[346976381,1735445451326,-500.0,0.00012986,2]
[346976382,1735445451336,-500.0,0.00012986,2]
[346976383,1735445451345,-500.0,0.00012986,2]
[346976384,1735445451355,-500.0,0.00012986,2]
[346976385,1735445451364,-500.0,0.00012986,2]
[346976386,1735445451374,-457.92755376,0.00012986,2]
[346976387,1735445451383,-500.0,0.00012986,2]
[346976388,1735445451392,-500.0,0.00012986,2]
[346976389,1735445451401,-500.0,0.00012986,2]
[346976390,1735445451410,-508.21285081,0.00012986,2]
[346976391,1735445451419,-500.0,0.00012986,2]
[346976392,1735445451429,-151.0,0.00012986,2]
[346976393,1735445451438,-233.713042,0.00012986,2]
[346976394,1735445451447,-500.0,0.00012986,2]
[346976395,1735445451456,-526.92248975,0.00012986,2]
[346976396,1735445451465,-500.0,0.00012986,2]
[346976397,1735445451474,-151.0,0.00012986,2]
[346976398,1735445451483,-151.450824,0.00012986,2]
[346976399,1735445451492,-152.615874,0.00012986,2]
[346976400,1735445451500,-500.0,0.00012986,2]
[346976401,1735445451510,-500.0,0.00012986,2]
[346976402,1735445451520,-500.0,0.00012986,2]
[346976403,1735445451529,-500.0,0.00012986,2]
[346976404,1735445451539,-371.89,0.00012986,2]
[346976405,1735445451549,-500.0,0.00012986,2]
[346976406,1735445451558,-349.05084943,0.00012986,2]
[346976407,1735445451568,-500.0,0.00012986,2]
[346976408,1735445451577,-500.0,0.00012986,2]
[346976409,1735445451587,-260.96674915,0.00012986,2]
[346976410,1735445451597,-6242.46307455,0.00012987,2]
[346976411,1735445451606,-116651.1315257,0.00012987,2]
[346976412,1735445451623,-745.7939672,0.00012987,2]
[346976413,1735445451635,-2105.23442103,0.00012987,2]
[346976414,1735445451794,-385.0,0.00012987,2]
[346976415,1735445451807,-282.97441288,0.00012987,2]
[346976416,1735445451837,-234363.51121851,0.00012987,2]
[346976476,1735446632035,-683.83,0.00010011,2]
[346976478,1735446632044,-298.93,0.00010137,2]
[346976480,1735446632053,-7108.27882457,0.00010656,2]
[346976482,1735446632062,-1114.72,0.00011653,2]
[346976483,1735446632073,-1000.0,0.00011823,2]
[346976484,1735446632083,-250.0,0.00011903,2]
[346976485,1735446632092,-343.05,0.00011974,2]
[346976486,1735446632102,-626.39,0.0001198,2]
[346976487,1735446632112,-250.0,0.00011983,2]
[346976488,1735446632124,-165.27,0.00011992,2]
[346976489,1735446632133,-150.03,0.00012154,2]
[346976490,1735446632150,-150.4,0.00012154,2]
[346976491,1735446632163,-150.24,0.00012154,2]
[346976492,1735446632173,-683.83,0.00012274,2]
[346976493,1735446632183,-410.416,0.0001234,2]
[346976494,1735446632195,-884.72667922,0.00012348,2]
[346976495,1735446632205,-150.0,0.00012437,2]
[346976496,1735446632215,-150.0,0.000126,2]
[346976497,1735446632226,-150.0,0.00012722,2]
[346976498,1735446632235,-165.35936799,0.00012884,2]
[346976499,1735446632244,-4414.1884,0.00012885,2]
[346976500,1735446632254,-376.66,0.00012886,2]
[346976501,1735446632264,-507.8013,0.00012886,2]
[346976502,1735446632275,-186.23867853,0.0001289,2]
[346976503,1735446632283,-579.784,0.000129,2]
[346976504,1735446632293,-150.0,0.00012955,2]
[346976505,1735446632302,-500.0,0.00012984,2]
[346976506,1735446632313,-501.85742271,0.00012984,2]
[346976507,1735446632323,-500.0,0.00012984,2]
[346976508,1735446632334,-422.46093057,0.00012984,2]
[346976509,1735446632343,-500.0,0.00012984,2]
[346976510,1735446632353,-455.70947959,0.00012984,2]
[346976511,1735446632364,-500.0,0.00012984,2]
[346976512,1735446632373,-500.0,0.00012984,2]
[346976513,1735446632382,-448.09949347,0.00012984,2]
[346976514,1735446632393,-500.0,0.00012984,2]
[346976515,1735446632406,-500.0,0.00012984,2]
[346976516,1735446632415,-500.0,0.00012984,2]
[346976517,1735446632427,-513.93860211,0.00012984,2]
[346976518,1735446632436,-619.0,0.00012984,2]
[346976520,1735446632447,-500.0,0.00012984,2]
[346976522,1735446632456,-500.0,0.00012984,2]
[346976524,1735446632465,-500.0,0.00012984,2]
[346976526,1735446632475,-500.0,0.00012984,2]
[346976528,1735446632485,-500.0,0.00012984,2]
[346976530,1735446632494,-500.0,0.00012984,2]
[346976532,1735446632504,-500.0,0.00012984,2]
[346976534,1735446632513,-500.0,0.00012984,2]
[346976536,1735446632522,-737.65,0.00012984,2]
[346976538,1735446632532,-506.81612384,0.00012984,2]
[346976540,1735446632542,-500.0,0.00012984,2]
[346976542,1735446632551,-500.0,0.00012984,2]
[346976544,1735446632561,-804.75,0.00012984,2]
[346976546,1735446632570,-500.0,0.00012984,2]
[346976548,1735446632579,-500.0,0.00012984,2]
[346976550,1735446632588,-750.55,0.00012984,2]
[346976552,1735446632598,-500.0,0.00012984,2]
[346976554,1735446632607,-500.0,0.00012984,2]
[346976556,1735446632616,-500.0,0.00012984,2]
[346976559,1735446632625,-500.0,0.00012984,2]
[346976562,1735446632635,-500.0,0.00012984,2]
[346976566,1735446632644,-503.92937757,0.00012984,2]
[346976569,1735446632653,-500.0,0.00012984,2]
[346976572,1735446632663,-500.0,0.00012984,2]
[346976575,1735446632672,-500.0,0.00012984,2]
[346976578,1735446632681,-500.0,0.00012984,2]
[346976581,1735446632690,-500.0,0.00012984,2]
[346976584,1735446632699,-500.0,0.00012984,2]
[346976587,1735446632709,-426.86439099,0.00012984,2]
[346976590,1735446632718,-500.0,0.00012984,2]
[346976593,1735446632727,-500.0,0.00012984,2]
[346976596,1735446632736,-500.0,0.00012984,2]
[346976599,1735446632745,-506.38538549,0.00012984,2]
[346976601,1735446632754,-500.0,0.00012984,2]
[346976603,1735446632763,-500.0,0.00012984,2]
[346976605,1735446632773,-500.0,0.00012984,2]
[346976607,1735446632782,-500.0,0.00012984,2]
[346976609,1735446632791,-500.0,0.00012984,2]
[346976611,1735446632800,-500.0,0.00012984,2]
[346976613,1735446632809,-500.0,0.00012984,2]
[346976615,1735446632818,-645.97,0.00012984,2]
[346976617,1735446632827,-500.0,0.00012984,2]
[346976619,1735446632836,-501.23126042,0.00012984,2]
[346976621,1735446632846,-203.22617199,0.00012984,2]
[346976623,1735446632855,-500.0,0.00012984,2]
[346976625,1735446632864,-500.0,0.00012984,2]
[346976626,1735446632874,-500.0,0.00012984,2]
[346976628,1735446632882,-310.09882635,0.00012984,2]
[346976630,1735446632891,-545.08,0.00012984,2]
[346976632,1735446632900,-500.0,0.00012984,2]
[346976634,1735446632909,-500.0,0.00012984,2]
[346976636,1735446632918,-500.0,0.00012984,2]
[346976638,1735446632928,-500.0,0.00012984,2]
[346976640,1735446632937,-500.0,0.00012984,2]
[346976642,1735446632946,-846.32,0.00012984,2]
[346976644,1735446632955,-500.0,0.00012984,2]
[346976646,1735446632965,-500.0,0.00012984,2]
[346976648,1735446632974,-500.0,0.00012984,2]
[346976650,1735446632983,-500.0,0.00012984,2]
[346976652,1735446632992,-500.0,0.00012984,2]
[346976654,1735446633001,-500.0,0.00012984,2]
[346976656,1735446633010,-843.7,0.00012984,2]
[346976658,1735446633020,-780.24,0.00012984,2]
[346976660,1735446633029,-500.0,0.00012984,2]
[346976662,1735446633039,-500.0,0.00012984,2]
[346976664,1735446633048,-500.0,0.00012984,2]
[346976666,1735446633058,-500.0,0.00012984,2]
[346976668,1735446633067,-500.0,0.00012984,2]
[346976670,1735446633076,-500.0,0.00012984,2]
[346976672,1735446633085,-500.0,0.00012984,2]
[346976674,1735446633095,-500.0,0.00012984,2]
[346976676,1735446633104,-500.0,0.00012984,2]
[346976678,1735446633114,-500.0,0.00012984,2]
[346976680,1735446633124,-500.0,0.00012984,2]
[346976682,1735446633133,-500.0,0.00012984,2]
[346976683,1735446633142,-500.0,0.00012984,2]
[346976685,1735446633151,-500.0,0.00012984,2]
[346976688,1735446633161,-500.0,0.00012984,2]
[346976689,1735446633170,-500.0,0.00012984,2]
[346976690,1735446633179,-500.0,0.00012984,2]
[346976691,1735446633189,-500.0,0.00012984,2]
[346976692,1735446633198,-500.0,0.00012984,2]
[346976693,1735446633207,-500.0,0.00012984,2]
[346976694,1735446633216,-500.0,0.00012984,2]
[346976695,1735446633225,-500.0,0.00012984,2]
[346976696,1735446633235,-500.0,0.00012984,2]
[346976697,1735446633244,-500.0,0.00012984,2]
[346976698,1735446633254,-500.0,0.00012984,2]
[346976699,1735446633263,-500.0,0.00012984,2]
[346976700,1735446633272,-528.47,0.00012984,2]
[346976701,1735446633281,-500.0,0.00012984,2]
[346976702,1735446633290,-500.0,0.00012984,2]
[346976703,1735446633299,-500.0,0.00012984,2]
[346976704,1735446633309,-500.0,0.00012984,2]
[346976705,1735446633318,-500.0,0.00012984,2]
[346976706,1735446633327,-500.0,0.00012984,2]
[346976707,1735446633336,-500.0,0.00012984,2]
[346976708,1735446633346,-500.0,0.00012984,2]
[346976709,1735446633355,-682.45,0.00012984,2]
[346976710,1735446633364,-441.96107309,0.00012984,2]
[346976711,1735446633374,-500.0,0.00012984,2]
[346976712,1735446633383,-720.77,0.00012984,2]
[346976713,1735446633396,-500.0,0.00012984,2]
[346976714,1735446633406,-500.0,0.00012984,2]
[346976715,1735446633415,-500.0,0.00012984,2]
[346976716,1735446633424,-500.0,0.00012984,2]
[346976717,1735446633435,-500.0,0.00012984,2]
[346976718,1735446633444,-500.0,0.00012984,2]
[346976719,1735446633453,-500.0,0.00012984,2]
[346976720,1735446633462,-2948.66,0.00012984,2]
[346976721,1735446633472,-500.0,0.00012984,2]
[346976722,1735446633482,-726.23,0.00012984,2]
[346976723,1735446633491,-500.0,0.00012984,2]
[346976724,1735446633501,-500.0,0.00012984,2]
[346976725,1735446633510,-500.0,0.00012984,2]
[346976726,1735446633518,-500.0,0.00012984,2]
[346976727,1735446633527,-715.55,0.00012984,2]
[346976728,1735446633536,-500.0,0.00012984,2]
[346976729,1735446633545,-500.0,0.00012984,2]
[346976730,1735446633554,-500.0,0.00012984,2]
[346976731,1735446633564,-1297.28,0.00012984,2]
[346976732,1735446633573,-500.0,0.00012984,2]
[346976733,1735446633582,-500.0,0.00012984,2]
[346976734,1735446633591,-500.0,0.00012984,2]
[346976735,1735446633600,-500.0,0.00012984,2]
[346976736,1735446633609,-500.0,0.00012984,2]
[346976737,1735446633619,-500.0,0.00012984,2]
[346976738,1735446633628,-500.0,0.00012984,2]
[346976739,1735446633637,-500.0,0.00012984,2]
[346976740,1735446633646,-500.0,0.00012984,2]
[346976741,1735446633655,-500.0,0.00012984,2]
[346976742,1735446633665,-500.0,0.00012984,2]
[346976743,1735446633674,-500.0,0.00012984,2]
[346976744,1735446633683,-500.0,0.00012984,2]
[346976745,1735446633692,-631.37,0.00012984,2]
[346976746,1735446633701,-500.0,0.00012984,2]
[346976747,1735446633710,-500.0,0.00012984,2]
[346976748,1735446633718,-500.0,0.00012984,2]
[346976749,1735446633727,-500.0,0.00012984,2]
[346976750,1735446633736,-1420.4,0.00012984,2]
[346976751,1735446633746,-500.0,0.00012984,2]
[346976752,1735446633755,-546.87,0.00012984,2]
[346976753,1735446633764,-500.0,0.00012984,2]
[346976754,1735446633773,-500.0,0.00012984,2]
[346976755,1735446633783,-500.0,0.00012984,2]
[346976756,1735446633792,-500.0,0.00012984,2]
[346976757,1735446633801,-1530.68,0.00012984,2]
[346976758,1735446633810,-500.0,0.00012984,2]
[346976759,1735446633819,-725.83,0.00012984,2]
[346976760,1735446633829,-697.83,0.00012984,2]
[346976761,1735446633838,-500.0,0.00012984,2]
[346976762,1735446633847,-500.0,0.00012984,2]
[346976763,1735446633857,-614.75688955,0.00012984,2]
[346976764,1735446633866,-500.0,0.00012984,2]
[346976765,1735446633875,-859.8,0.00012984,2]
[346976766,1735446633885,-500.0,0.00012984,2]
[346976767,1735446633894,-500.0,0.00012984,2]
[346976768,1735446633903,-500.0,0.00012984,2]
[346976769,1735446633913,-500.0,0.00012984,2]
[346976770,1735446633922,-2384.81,0.00012984,2]
[346976771,1735446633932,-2280.29,0.00012984,2]
[346976772,1735446633941,-500.0,0.00012984,2]
[346976773,1735446633951,-500.0,0.00012984,2]
[346976774,1735446633960,-464.1333081,0.00012984,2]
[346976775,1735446633969,-631.08,0.00012984,2]
[346976776,1735446633978,-918.4,0.00012984,2]
[346976777,1735446633987,-500.0,0.00012984,2]
[346976778,1735446633996,-758.83,0.00012984,2]
[346976779,1735446634005,-500.0,0.00012984,2]
[346976780,1735446634016,-2319.66,0.00012984,2]
[346976781,1735446634025,-500.0,0.00012984,2]
[346976782,1735446634035,-1209.62,0.00012984,2]
[346976783,1735446634044,-622.04,0.00012984,2]
[346976784,1735446634054,-500.0,0.00012984,2]
[346976785,1735446634063,-500.0,0.00012984,2]
[346976786,1735446634073,-1367.11,0.00012984,2]
[346976787,1735446634082,-500.0,0.00012984,2]
[346976788,1735446634091,-500.0,0.00012984,2]
[346976789,1735446634101,-500.0,0.00012984,2]
[346976790,1735446634110,-500.0,0.00012984,2]
[346976791,1735446634120,-2471.98,0.00012984,2]
[346976792,1735446634129,-500.0,0.00012984,2]
[346976793,1735446634138,-500.0,0.00012984,2]
[346976794,1735446634147,-3420.2,0.00012984,2]
[346976795,1735446634156,-6940.57,0.00012984,2]
[346976796,1735446634166,-500.0,0.00012984,2]
[346976797,1735446634175,-506.85820672,0.00012984,2]
[346976798,1735446634186,-155.506757,0.00012984,2]
[346976799,1735446634196,-155.920599,0.00012984,2]
[346976800,1735446634205,-539.66,0.00012984,2]
[346976801,1735446634214,-707.927501,0.00012984,2]
[346976802,1735446634223,-7688.75,0.00012984,2]
[346976803,1735446634232,-996.86,0.00012984,2]
[346976804,1735446634241,-500.0,0.00012984,2]
[346976805,1735446634251,-500.0,0.00012984,2]
[346976806,1735446634260,-512.17114,0.00012984,2]
[346976807,1735446634271,-898.68,0.00012984,2]
[346976808,1735446634281,-501.12188557,0.00012984,2]
[346976809,1735446634290,-1579.78,0.00012984,2]
[346976810,1735446634299,-605.49,0.00012984,2]
[346976811,1735446634308,-500.0,0.00012984,2]
[346976812,1735446634317,-500.0,0.00012984,2]
[346976813,1735446634326,-500.0,0.00012984,2]
[346976814,1735446634335,-1128.52,0.00012984,2]
[346976815,1735446634344,-500.0,0.00012984,2]
[346976816,1735446634353,-500.0,0.00012984,2]
[346976817,1735446634361,-302.13048104,0.00012984,2]
[346976818,1735446634372,-500.0,0.00012984,2]
[346976819,1735446634381,-568.27,0.00012984,2]
[346976820,1735446634392,-500.0,0.00012984,2]
[346976821,1735446634402,-500.0,0.00012984,2]
[346976822,1735446634411,-500.0,0.00012984,2]
[346976823,1735446634420,-1185.71,0.00012984,2]
[346976824,1735446634429,-1242.11,0.00012984,2]
[346976825,1735446634439,-503.54199936,0.00012984,2]
[346976826,1735446634448,-504.76358075,0.00012984,2]
[346976827,1735446634458,-390.9947128,0.00012984,2]
[346976828,1735446634467,-8022.32,0.00012984,2]
[346976829,1735446634476,-500.0,0.00012984,2]
[346976830,1735446634486,-505.25973395,0.00012984,2]
[346976831,1735446634495,-5916.56,0.00012984,2]
[346976832,1735446634505,-500.0,0.00012984,2]
[346976833,1735446634514,-500.0,0.00012984,2]
[346976834,1735446634523,-486.70559898,0.00012984,2]
[346976835,1735446634532,-504.83,0.00012984,2]
[346976836,1735446634541,-500.0,0.00012984,2]
[346976837,1735446634550,-3681.41,0.00012984,2]
[346976838,1735446634560,-504.9464978,0.00012984,2]
[346976839,1735446634572,-4983.86,0.00012984,2]
[346976840,1735446634581,-500.0,0.00012984,2]
[346976841,1735446634590,-501.4314522,0.00012984,2]
[346976842,1735446634599,-500.0,0.00012984,2]
[346976843,1735446634767,-500.0,0.00012984,2]
[346976844,1735446634776,-997.49,0.00012984,2]
[346976845,1735446634786,-549.02,0.00012984,2]
[346976846,1735446634795,-900.33,0.00012984,2]
[346976847,1735446634804,-501.92226047,0.00012984,2]
[346976848,1735446634813,-500.0,0.00012984,2]
[346976849,1735446634822,-500.0,0.00012984,2]
[346976850,1735446634831,-500.0,0.00012984,2]
[346976851,1735446634841,-4898.21,0.00012984,2]
[346976852,1735446634850,-500.0,0.00012984,2]
[346976853,1735446634859,-500.0,0.00012984,2]
[346976854,1735446634869,-2282.45,0.00012984,2]
[346976855,1735446634878,-933.77,0.00012984,2]
[346976856,1735446634887,-500.0,0.00012984,2]
[346976857,1735446634897,-513.25672268,0.00012984,2]
[346976858,1735446634907,-517.79947277,0.00012984,2]
[346976859,1735446634916,-380.41284404,0.00012984,2]
[346976860,1735446634927,-5625.05,0.00012984,2]
[346976861,1735446634936,-500.0,0.00012984,2]
[346976862,1735446634947,-1415.78,0.00012984,2]
[346976863,1735446634956,-500.0,0.00012984,2]
[346976864,1735446634965,-2205.74,0.00012984,2]
[346976865,1735446634974,-518.64952512,0.00012984,2]
[346976866,1735446634983,-500.0,0.00012984,2]
[346976867,1735446634992,-1740.97,0.00012984,2]
[346976868,1735446635001,-500.0,0.00012984,2]
[346976869,1735446635010,-1842.52,0.00012984,2]
[346976870,1735446635019,-500.0,0.00012984,2]
[346976871,1735446635028,-520.84997342,0.00012984,2]
[346976872,1735446635038,-500.0,0.00012984,2]
[346976873,1735446635048,-3963.65,0.00012984,2]
[346976874,1735446635058,-500.0,0.00012984,2]
[346976875,1735446635067,-1034.87,0.00012984,2]
[346976876,1735446635077,-500.0,0.00012984,2]
[346976877,1735446635086,-500.0,0.00012984,2]
[346976878,1735446635095,-500.0,0.00012984,2]
[346976879,1735446635104,-500.0,0.00012984,2]
[346976880,1735446635113,-500.0,0.00012984,2]
[346976881,1735446635124,-500.0,0.00012984,2]
[346976882,1735446635133,-441.15077124,0.00012984,2]
[346976883,1735446635142,-500.0,0.00012984,2]
[346976884,1735446635151,-500.0,0.00012984,2]
[346976885,1735446635160,-500.0,0.00012984,2]
[346976886,1735446635169,-819.01,0.00012984,2]
[346976887,1735446635178,-500.0,0.00012984,2]
[346976888,1735446635187,-504.40514155,0.00012984,2]
[346976889,1735446635197,-500.0,0.00012984,2]
[346976890,1735446635207,-500.0,0.00012984,2]
[346976891,1735446635218,-500.0,0.00012984,2]
[346976892,1735446635227,-1109.3,0.00012984,2]
[346976893,1735446635237,-500.0,0.00012984,2]
[346976894,1735446635246,-500.0,0.00012984,2]
[346976895,1735446635255,-500.0,0.00012984,2]
[346976896,1735446635264,-500.0,0.00012984,2]
[346976897,1735446635274,-500.0,0.00012984,2]
[346976898,1735446635283,-500.0,0.00012984,2]
[346976899,1735446635293,-500.0,0.00012984,2]
[346976900,1735446635302,-500.0,0.00012984,2]
[346976901,1735446635311,-500.0,0.00012984,2]
[346976902,1735446635321,-500.0,0.00012984,2]
[346976903,1735446635330,-500.0,0.00012984,2]
[346976904,1735446635340,-500.0,0.00012984,2]
[346976905,1735446635349,-500.0,0.00012984,2]
[346976906,1735446635358,-369.87,0.00012985,2]
[346976907,1735446635367,-1000.0,0.00012985,2]
[346976908,1735446635376,-1000.0,0.00012985,2]
[346976909,1735446635385,-1000.0,0.00012985,2]
[346976910,1735446635398,-1000.0,0.00012985,2]
[346976911,1735446635408,-1000.0,0.00012985,2]
[346976912,1735446635420,-1000.0,0.00012985,2]
[346976913,1735446635430,-1000.0,0.00012985,2]
[346976914,1735446635439,-1000.0,0.00012985,2]
[346976915,1735446635448,-1000.0,0.00012985,2]
[346976916,1735446635457,-1000.0,0.00012985,2]
[346976917,1735446635468,-1000.0,0.00012985,2]
[346976918,1735446635478,-1000.0,0.00012985,2]
[346976919,1735446635487,-1000.0,0.00012985,2]
[346976920,1735446635497,-1000.0,0.00012985,2]
[346976921,1735446635506,-1000.0,0.00012985,2]
[346976922,1735446635516,-1000.0,0.00012985,2]
[346976923,1735446635526,-1000.0,0.00012985,2]
[346976924,1735446635535,-1000.0,0.00012985,2]
[346976925,1735446635545,-1000.0,0.00012985,2]
[346976926,1735446635555,-1000.0,0.00012985,2]
[346976927,1735446635564,-1000.0,0.00012985,2]
[346976928,1735446635573,-1000.0,0.00012985,2]
[346976929,1735446635582,-1000.0,0.00012985,2]
[346976930,1735446635591,-1000.0,0.00012985,2]
[346976931,1735446635600,-1000.0,0.00012985,2]
[346976932,1735446635609,-1000.0,0.00012985,2]
[346976933,1735446635618,-1000.0,0.00012985,2]
[346976934,1735446635627,-1000.0,0.00012985,2]
[346976935,1735446635637,-1000.0,0.00012985,2]
[346976936,1735446635646,-1000.0,0.00012985,2]
[346976937,1735446635655,-1000.0,0.00012985,2]
[346976938,1735446635665,-1000.0,0.00012985,2]
[346976939,1735446635674,-1000.0,0.00012985,2]
[346976940,1735446635684,-1000.0,0.00012985,2]
[346976941,1735446635695,-1000.0,0.00012985,2]
[346976942,1735446635706,-1000.0,0.00012985,2]
[346976943,1735446635716,-1000.0,0.00012985,2]
[346976944,1735446635727,-1000.0,0.00012985,2]
[346976945,1735446635737,-1000.0,0.00012985,2]
[346976946,1735446635746,-1000.0,0.00012985,2]
[346976947,1735446635755,-1000.0,0.00012985,2]
[346976948,1735446635765,-1000.0,0.00012985,2]
[346976949,1735446635774,-1000.0,0.00012985,2]
[346976950,1735446635784,-653.0,0.00012985,2]
[346976951,1735446635793,-500.0,0.00012985,2]
[346976952,1735446635801,-500.0,0.00012985,2]